fUSD/lending_fUSD_20240103
["ID","MTS","AMOUNT","RATE_DAILY","PERIOD"]
[309990570,1704279032654,-2000.0,0.00030889,2]
[309990572,1704279032664,-2000.0,0.00030889,2]
[309990574,1704279032674,-2000.0,0.00030889,2]
[309990576,1704279032684,-2000.0,0.00030889,2]
[309990578,1704279032694,-1264.86498362,0.00030889,2]
[309990579,1704279032704,-47880.61221534,0.0003089,2]
[309990580,1704279032714,-100000.0,0.0003089,2]
[309990581,1704279032724,-151.40103,0.00030898,2]
[309990582,1704279032735,-161.34,0.00030904,2]
[309990583,1704279032745,-177.71960129,0.0003098,2]
[309990584,1704279032754,-155.47670528,0.00030986,4]
[309990585,1704279032764,-155.58640169,0.00030986,4]
[309990586,1704279032774,-3757.7228167,0.00030986,4]
[309990587,1704279032783,-155.63615164,0.00030986,4]
[309990588,1704279032793,-155.0,0.00030986,4]
[309990589,1704279032802,-155.27028325,0.00030986,4]
[309990590,1704279032814,-576.00930164,0.00030986,4]
[309990591,1704279032824,-158.07328305,0.00030986,4]
[309990592,1704279032834,-3019.43176497,0.00030986,4]
[309990593,1704279032847,-155.28376448,0.00030986,4]
[309990594,1704279032856,-155.23410914,0.00030986,4]
[309990595,1704279032867,-155.48825611,0.00030986,4]
[309990596,1704279032877,-762.69878881,0.00030986,4]
[309990597,1704279032887,-362.50194875,0.00030986,4]
[309990598,1704279032897,-160.76605798,0.00030986,4]
[309990599,1704279032907,-155.28148489,0.00030986,4]
[309990600,1704279032916,-755.53300998,0.00030986,4]
[309990601,1704279032926,-151.0,0.00030986,7]
[309990602,1704279032935,-161.80438409,0.00030987,4]
[309990603,1704279032945,-155.12802974,0.00030987,4]
[309990604,1704279032954,-533.37503822,0.00030987,4]
[309990605,1704279032963,-3179.81827275,0.00030987,4]
[309990606,1704279032973,-764.01209211,0.00030987,4]
[309990607,1704279032983,-151.0,0.00030988,3]
[309990608,1704279032993,-151.0,0.00030988,7]
[309990609,1704279033002,-151.0,0.00030988,7]
[309990610,1704279033012,-151.0,0.00030988,7]
[309990611,1704279033021,-151.0,0.00030988,7]
[309990612,1704279033031,-132512.52888896,0.00030988,4]
[309990613,1704279033041,-155.30037119,0.00030988,4]
[309990614,1704279033052,-155.43428838,0.00030988,4]
[309990615,1704279033062,-86296.75277158,0.0003099,2]
[309990616,1704279033072,-550.1332,0.0003099,2]
[309990617,1704279033081,-151.0,0.0003099,3]
[309990618,1704279033091,-151.0,0.0003099,7]
[309990619,1704279033100,-284.320314,0.0003099,7]
[309990620,1704279033109,-151.0,0.0003099,7]
[309990621,1704279033118,-248.2355,0.0003099,7]
[309990622,1704279033128,-151.0,0.0003099,7]
[309990623,1704279033137,-151.0,0.0003099,7]
[309990624,1704279033147,-151.40103,0.00030998,2]
[309990626,1704279033156,-50000.0,0.00031,2]
[309990627,1704279033165,-29545.29988221,0.00031,3]
[309990629,1704279033175,-1755.0,0.00031,2]
[309990630,1704279033184,-1064.93142623,0.00031,2]
[309990631,1704279033193,-151.0,0.00031,7]
[309990632,1704279033203,-350.0,0.00031,3]
[309990633,1704279033212,-238.136658,0.00031,7]
[309990634,1704279033221,-1000.0,0.00031,3]
[309990635,1704279033231,-328.63278419,0.00031,2]
[309990636,1704279033241,-151.0,0.00031,7]
[309990637,1704279033251,-151.0,0.00031,7]
[309990638,1704279033260,-151.0,0.00031078,3]
[309990639,1704279033270,-151.40103,0.00031098,2]
[309990640,1704279033279,-19128.0,0.000311,2]
[309990641,1704279033289,-151.0,0.000311,3]
[309990642,1704279033299,-275.12,0.00031141,7]
[309990643,1704279033309,-161.34,0.00031177,2]
[309990644,1704279033318,-151.40103,0.00031198,2]
[309990645,1704279033328,-151.0,0.0003123,7]
[309990646,1704279033341,-288.812933,0.0003123,7]
[309990647,1704279033351,-151.40103,0.00031298,2]
[309990648,1704279033360,-35216.44,0.000313,2]
[309990649,1704279033369,-1300.87670518,0.00031342,5]
[309990650,1704279033378,-151.0,0.00031382,7]
[309990651,1704279033388,-151.0,0.00031394,3]
[309990652,1704279033397,-132999.7863,0.00031396,2]
[309990653,1704279033406,-151.0,0.00031396,3]
[309990654,1704279033415,-151.0,0.00031396,7]
[309990655,1704279033424,-151.40103,0.00031398,2]
[309990656,1704279033435,-180.41,0.00031421,2]
[309990657,1704279033444,-161.34,0.00031451,2]
[309990658,1704279033453,-151.40103,0.00031498,2]
[309990659,1704279033462,-500.0,0.000315,2]
[309990660,1704279033472,-500.0,0.00031546,2]
[309990661,1704279033481,-200.0,0.00031546,2]
[309990662,1704279033491,-346.0,0.0003155,5]
[309990663,1704279033501,-45197.0524671,0.0003155,2]
[309990664,1704279033510,-153.149456,0.0003155,3]
[309990665,1704279033520,-151.0,0.0003155,7]
[309990666,1704279033529,-151.40103,0.00031598,2]
[309990667,1704279033539,-4631.80540162,0.000316,3]
[309990668,1704279033549,-151.40103,0.00031698,2]
[309990669,1704279033559,-2000.0,0.000317,4]
[309990670,1704279033569,-7500.0,0.000317,2]
[309990671,1704279033579,-282.2763043,0.000317,3]
[309990672,1704279033588,-239.61512487,0.000317,2]
[309990673,1704279033598,-351.48759314,0.000317,2]
[309990674,1704279033608,-161.34,0.00031724,2]
[309990675,1704279033617,-205.0,0.00031734,7]
[309990676,1704279033627,-151.0,0.00031761,7]
[309990677,1704279033637,-155.0,0.00031798,2]
[309990678,1704279033647,-151.40103,0.00031798,2]
[309990679,1704279033656,-3285.13803586,0.00031799,2]
[309990680,1704279033665,-8133.55680226,0.000318,2]
[309990681,1704279033680,-3132.45875751,0.000318,2]
[309990682,1704279033696,-342.96685845,0.000318,2]
[309990683,1704279033713,-3757.7228167,0.000318,2]
[309990684,1704279033742,-654.5072355,0.000318,2]
[309990685,1704279033777,150.0,0.00025003,2]
[309990686,1704279037983,-399.71253246,0.00030678,2]
[309990687,1704279037995,-523.55681014,0.00030678,2]
[309990688,1704279038263,-3177.99664968,0.00030678,2]
[309990689,1704279038275,-537.8831543,0.00030678,2]
[309990690,1704279038317,-48854.97705342,0.00030678,2]
[309990691,1704279038330,-741.84355756,0.00031799,2]
[309990692,1704279038340,-16934.51436508,0.000318,2]
[309990693,1704279038373,-1254.29016131,0.000318,2]
[309990694,1704279038429,-15789.98300319,0.000318,2]
[309990695,1704279038440,-151.0,0.000318,7]
[309990696,1704279038451,-508645.88980843,0.000318,2]
[309990755,1704279040673,-1726.46668132,0.000317,2]
[309990756,1704279040733,-273.3564721,0.000317,2]
[309990757,1704279040844,-1492.5,0.000317,2]
[309990758,1704279040865,-6392.09166144,0.000317,2]
[309990759,1704279040881,-2730.82444779,0.000317,2]
[309990760,1704279040890,-16212.6877667,0.000318,2]
[309990761,1704279040906,-1935.15647286,0.000318,2]
[309990772,1704279043568,-355.74784148,0.00031757,2]
[309990773,1704279043910,-253.04596685,0.00031757,2]
[309990774,1704279043966,-2277.75955266,0.00031757,2]
[309990777,1704279046102,-289.04542605,0.0003105,2]
[309990778,1704279046182,-45.34457395,0.0003105,2]
[309990779,1704279046191,-433.05542604,0.00031757,2]
[309990780,1704279046203,-3316.2925398,0.00031757,2]
[309990781,1704279046298,-5979.33793577,0.00031757,2]
[309990782,1704279046307,-81721.00761096,0.000318,2]
[309990783,1704279046317,-27118.65149798,0.000318,2]
[309990784,1704279046327,-175.0007608,0.000318,4]
[309990785,1704279046336,-150.0,0.000318,2]
[309990786,1704279046346,-1294.7500496,0.000318,2]
[309990787,1704279046357,-3000.0,0.000318,2]
[309990788,1704279046366,-967.0,0.000318,2]
[309990789,1704279046375,-26522.96710718,0.000318,3]
[309990790,1704279046387,-7416.38028132,0.000318,3]
[309990791,1704279046396,-159.038924,0.000318,2]
[309990792,1704279046406,-151.0,0.000318,7]
[309990794,1704279046415,-172.7906214,0.00031806,2]
[309990796,1704279046424,-1347.9556059,0.00031806,2]
[309990797,1704279046434,-1727.9214892,0.00031806,2]
[309990799,1704279046444,-37466.531636,0.00031806,2]
[309990801,1704279046453,-624.3113898,0.00031806,2]
[309990803,1704279046463,-176.5426906,0.00031806,2]
[309990805,1704279046472,-208.0,0.0003185,2]
[309990808,1704279046483,-4631.80540154,0.00031878,3]
[309990811,1704279046492,-1300.87670518,0.00031894,5]
[309990814,1704279046502,-151.40103,0.00031898,2]
[309990817,1704279046511,-160.96440862,0.000319,2]
[309990820,1704279046521,-150.62937156,0.000319,2]
[309990823,1704279046530,-512.1919158,0.000319,2]
[309990827,1704279046540,-245.12229753,0.000319,20]
[309990830,1704279046550,-489.8287681,0.000319,2]
[309990833,1704279046559,-150.62937148,0.00031927,2]
[309990836,1704279046570,-715.018,0.00031935,2]
[309990839,1704279046579,-1026.0,0.00031935,2]
[309990842,1704279046589,-152.0,0.00031956,3]
[309990844,1704279046598,-161.34,0.00031998,2]
[309990847,1704279046609,-151.40103,0.00031998,2]
[309990850,1704279046619,-1019.32,0.00031999,3]
[309990851,1704279046629,-26001.34956708,0.00032,2]
[309990852,1704279070359,3203.61059529,0.00023,2]
[309990853,1704279070388,424553.59676508,0.00023,2]
[309990854,1704279070413,4795.0,0.00023,2]
[309990855,1704279070435,2801.25683492,0.00023,2]
[309990856,1704279070462,5475.0,0.00023,2]
[309990857,1704279070482,15475.0,0.00023,2]
[309990858,1704279070507,29850.0,0.00023,2]
[309990859,1704279070542,9837.54819822,0.00023,2]
[309990860,1704279158685,171.99,0.00016712,2]
[309990871,1704279301649,291.28624859,0.00016712,2]
[309990898,1704279305160,155.0,0.00016712,2]
[309990899,1704279311688,155.0,0.00016712,2]
[309990900,1704279319630,291.28624859,0.00016712,2]
[309990901,1704279322839,155.0,0.00016712,2]
[309990902,1704279335424,202.52319538,0.0002,2]
[309990903,1704279335622,195.82900777,0.00016712,2]
[309990904,1704279340869,167.10064555,0.00016712,2]
[309990907,1704279355194,500.0,0.000185,2]
[309990956,1704279497330,-931.13114601,0.00023646,2]
[309990957,1704279497357,-168.33,0.00023651,2]
[309990971,1704279574091,602.3345429,0.00023651,2]
[309990975,1704279641209,250.0,0.000192,2]
[309990976,1704279651849,177.07,0.00016712,2]
[309991005,1704279964357,9852.67,0.00029,30]
[309991006,1704279986572,281.95610178,0.0002,2]
[309991007,1704280004550,281.95610178,0.0002,2]
[309991008,1704280013994,155.0,0.0002,2]
[309991009,1704280018134,531.79797059,0.0002,2]
[309991010,1704280022689,451.08551476,0.0002,2]
[309991011,1704280022714,398.02745162,0.0002,2]
[309991012,1704280026558,281.95610178,0.0002,2]
[309991013,1704280035989,155.0,0.0002,2]
[309991014,1704280038130,531.79797059,0.0002,2]
[309991017,1704280042557,236.31864757,0.0002,2]
[309991018,1704280044672,678.47629817,0.0002,2]
[309991019,1704280054119,549.50442344,0.0002,2]
[309991020,1704280056006,156.46608156,0.0002,2]
[309991021,1704280064619,4849.87210283,0.0002,2]
[309991022,1704280064648,406.32828738,0.0002,2]
[309991024,1704280072710,360.10925129,0.0002,2]
[309991028,1704280092709,359.96191956,0.0002,2]
[309991029,1704280094686,3879.93872616,0.0002,2]
[309991030,1704280094709,5006.33818439,0.0002,2]
[309991031,1704280094734,9173.70663688,0.0002,2]
[309991033,1704280134467,3254.615,0.00023551,90]
[309991124,1704280234633,-1272.92017302,0.0002353,4]
[309991125,1704280234646,-379.89357337,0.0002353,4]
[309991126,1704280234699,-427.93679428,0.0002353,4]
[309991127,1704280234711,-578.33786386,0.0002353,4]
[309991128,1704280234723,-1101.97457254,0.0002353,4]
[309991129,1704280234733,-931.13114601,0.00023531,2]
[309991130,1704280234743,-18956.58157169,0.00023532,2]
[309991131,1704280234753,-159.92311497,0.00023538,2]
[309991132,1704280234762,-585.74308808,0.00023551,2]
[309991134,1704280234772,-500.0,0.00023551,2]
[309991136,1704280234782,-1112.50821418,0.00023635,2]
[309991137,1704280234792,-251.37315364,0.00023648,2]
[309991138,1704280234802,-251.37315364,0.00023648,2]
[309991139,1704280234812,-251.37315364,0.00023648,2]
[309991140,1704280234822,-159.92311497,0.00024932,2]
[309991142,1704280234831,-307.5946143,0.00025,5]
[309991144,1704280234842,-206.0,0.00025594,2]
[309991145,1704280234851,-159.92311497,0.00026325,2]
[309991146,1704280234861,-2196.68755753,0.000264,2]
[309991147,1704280234870,-307.69,0.000264,2]
[309991148,1704280234880,-170.55,0.00027066,2]
[309991149,1704280234892,-250.0,0.000274,2]
[309991150,1704280234902,-14211.0,0.000274,2]
[309991151,1704280234912,-361.91,0.000274,2]
[309991152,1704280234922,-159.92311497,0.00027719,2]
[309991153,1704280234931,-500.0,0.00028219,2]
[309991154,1704280234942,-250.0,0.00028228,2]
[309991155,1704280234952,-710.32,0.00028385,2]
[309991156,1704280234962,-284.87,0.00028385,2]
[309991157,1704280234971,-200.0,0.00028385,2]
[309991158,1704280234981,-2000.0,0.00028415,2]
[309991159,1704280234991,-577.85,0.00028437,2]
[309991160,1704280235002,-189.04,0.00028452,2]
[309991161,1704280235013,-19586.81,0.00028475,2]
[309991162,1704280235023,-2071.61,0.00028503,2]
[309991163,1704280235034,-206.0,0.00028722,7]
[309991164,1704280235044,-158.45,0.0002875,2]
[309991165,1704280235055,-8269.99313815,0.00028788,2]
[309991166,1704280235067,-192.21815746,0.00028798,2]
[309991167,1704280235077,-542.91,0.00028798,2]
[309991168,1704280235088,-503.49,0.00028798,2]
[309991169,1704280235103,-158.45,0.00028916,2]
[309991170,1704280235114,-217.26,0.00028936,2]
[309991171,1704280235125,-2207.6,0.00028955,2]
[309991172,1704280235136,-158.45,0.00029083,2]
[309991173,1704280235146,-159.92311497,0.00029113,2]
[309991174,1704280235156,-158.45,0.00029249,2]
[309991175,1704280235168,-225.558886,0.00029315,14]
[309991176,1704280235179,-172.58,0.00029321,2]
[309991177,1704280235189,-170.55,0.0002933,2]
[309991178,1704280235198,-1002.68,0.0002933,2]
[309991179,1704280235209,-800.0,0.00029355,2]
[309991180,1704280235220,-284.87,0.00029364,2]
[309991181,1704280235230,-158.45,0.00029416,2]
[309991182,1704280235241,-154.21,0.00029556,2]
[309991183,1704280235251,-158.45,0.00029582,2]
[309991184,1704280235261,-158.45,0.00029748,2]
[309991185,1704280235271,-189.04,0.00029874,2]
[309991186,1704280235282,-158.45,0.00029915,2]
[309991187,1704280235292,-154.21,0.00029927,2]
[309991188,1704280235302,-235.9285818,0.00029998,2]
[309991189,1704280235311,-1102.19880535,0.00029998,2]
[309991190,1704280235321,-338.61397308,0.00029998,2]
[309991191,1704280235331,-1330.56854392,0.00029998,2]
[309991192,1704280235342,-2449.74974337,0.00029998,2]
[309991193,1704280235352,-188.38846996,0.00029998,2]
[309991194,1704280235362,-581.87642113,0.00029998,2]
[309991195,1704280235372,-155.0,0.00029999,2]
[309991196,1704280235382,-15343.57749243,0.00029999,2]
[309991197,1704280235391,-50000.0,0.0003,2]
[309991198,1704280235400,-156.56489479,0.0003,4]
[309991199,1704280235410,-155.0,0.0003,2]
[309991200,1704280235419,-158.45,0.00030081,2]
[309991201,1704280235429,-295.46457529,0.000301,2]
[309991202,1704280235439,-158.45,0.00030248,2]
[309991203,1704280235449,-154.21,0.00030297,2]
[309991204,1704280235459,-284.87,0.00030342,2]
[309991205,1704280235470,-6667.50152452,0.00030396,2]
[309991206,1704280235480,-156.33400897,0.00030398,4]
[309991207,1704280235489,-151.21568173,0.000304,2]
[309991208,1704280235499,-1000.0,0.000304,2]
[309991209,1704280235508,-225.558886,0.00030411,14]
[309991210,1704280235517,-159.92311497,0.00030506,2]
[309991211,1704280235527,-2918.699,0.00030557,2]
[309991212,1704280235537,-2284.932,0.00030557,2]
[309991213,1704280235546,-18578.38293239,0.00030557,2]
[309991214,1704280235566,-1047.61706761,0.00030557,2]
[309991215,1704280235576,-2905.20983498,0.00030557,2]
[309991216,1704280235588,-37385.72016502,0.00030557,2]
[309991217,1704280235600,-1026.0,0.00030557,2]
[309991218,1704280235610,-229.7444,0.00030578,2]
[309991219,1704280235619,-151.40103,0.00030598,2]
[309991220,1704280235630,-154.21,0.00030668,2]
[309991221,1704280235640,-5927.9453,0.00030678,2]
[309991222,1704280235650,-1182.597,0.00030678,3]
[309991223,1704280235660,-602.7786,0.00030678,2]
[309991224,1704280235670,-28888.6231,0.00030678,2]
[309991225,1704280235680,-9881.1672,0.00030678,2]
[309991226,1704280235690,-151.40103,0.00030698,2]
[309991227,1704280235700,-170.47902395,0.00030701,4]
[309991228,1704280235710,-151.40103,0.00030798,2]
[309991229,1704280235720,-1766.0,0.000308,2]
[309991230,1704280235730,-592.48371,0.000308,2]
[309991231,1704280235740,-323.69084001,0.000308,2]
[309991232,1704280235750,-19484.0,0.000308,2]
[309991233,1704280235759,-258.29,0.00030813,2]
[309991234,1704280235769,-824.8400041,0.00030886,4]
[309991235,1704280235779,-151.40103,0.00030898,2]
[309991236,1704280235789,-2085.5071,0.000309,2]
[309991237,1704280235799,-13528.8091831,0.000309,2]
[309991238,1704280235809,-1006.79221608,0.000309,5]
[309991239,1704280235823,-13528.80918292,0.000309,2]
[309991240,1704280235833,-13528.80918292,0.000309,2]
[309991241,1704280235843,-12063.92137129,0.000309,2]
[309991243,1704280238222,-523.02257823,0.00023529,2]
[309991244,1704280238232,-1464.88781163,0.000309,2]
[309991245,1704280238241,-13528.80918292,0.000309,2]
[309991246,1704280238250,-13528.80918292,0.000309,2]
[309991247,1704280238259,-13528.80918292,0.000309,2]
[309991248,1704280238269,-873.1052,0.00030912,2]
[309991249,1704280238278,-13528.80918292,0.0003096,2]
[309991250,1704280238287,-258.29,0.00030976,2]
[309991251,1704280238296,-151.40103,0.00030998,2]
[309991252,1704280238305,-50000.0,0.00031,2]
[309991253,1704280238315,-155.0,0.00031,2]
[309991254,1704280238324,-175.73,0.00031,2]
[309991255,1704280238333,-153.84,0.00031035,2]
[309991256,1704280238343,-154.21,0.00031039,2]
[309991257,1704280238352,-151.40103,0.00031098,2]
[309991258,1704280238362,-13528.80918292,0.00031111,2]
[309991259,1704280238370,-258.29,0.00031138,2]
[309991260,1704280238380,-1000.0,0.00031186,2]
[309991261,1704280238394,-151.40103,0.00031198,2]
[309991262,1704280238403,-164.26973171,0.0003123,2]
[309991263,1704280238412,-97433.87494247,0.0003124,2]
[309991264,1704280238425,-259.56812837,0.0003124,2]
[309991265,1704280238441,-28841.58950986,0.0003124,2]
[309991266,1704280238456,-2990.64555306,0.0003124,2]
[309991267,1704280238520,-3124.01825964,0.0003124,2]
[309991268,1704280238532,-109752.04272622,0.0003124,2]
[309991269,1704280238542,-13528.80918292,0.00031262,2]
[309991270,1704280238551,-189.04,0.00031297,2]
[309991271,1704280238560,-151.40103,0.00031298,2]
[309991272,1704280238569,-258.29,0.000313,2]
[309991273,1704280238578,-284.87,0.00031321,2]
[309991274,1704280238588,-151.40103,0.00031398,2]
[309991275,1704280238599,-320.69453811,0.000314,2]
[309991276,1704280238609,-154.21,0.00031409,2]
[309991277,1704280238618,-13528.80918292,0.00031414,2]
[309991278,1704280238627,-1006.79221608,0.00031436,5]
[309991279,1704280238637,-258.29,0.00031462,2]
[309991280,1704280238646,-151.40103,0.00031498,2]
[309991281,1704280238656,-158693.17925836,0.000315,2]
[309991282,1704280238666,-500.0,0.000315,2]
[309991283,1704280238675,-225.558886,0.00031507,14]
[309991284,1704280238684,-4459.0,0.00031507,2]
[309991285,1704280238694,-175.73,0.00031548,2]
[309991287,1704280238703,-13528.80918292,0.00031565,2]
[309991289,1704280238713,-107241.62554876,0.00031586,3]
[309991293,1704280238747,-685.6525,0.00031586,3]
[309991395,1704280240763,-528.5269001,0.00031586,3]
[309991396,1704280240776,-297.1035,0.00031586,3]
[309991397,1704280240789,-680.54889996,0.00031586,3]
[309991398,1704280240801,-321.88887296,0.00031586,3]
[309991399,1704280240851,-7991.59719673,0.00031586,3]
[309991400,1704280240862,-1048.63586942,0.00031586,3]
[309991401,1704280240874,-318.97194826,0.00031586,3]
[309991402,1704280241321,-629.64240114,0.00031586,3]
[309991403,1704280241340,-1139.11643078,0.00031586,3]
[309991404,1704280241352,-301.83235067,0.00031586,3]
[309991405,1704280241364,-1097.52650446,0.00031586,3]
[309991406,1704280241374,-170.55,0.00031594,2]
[309991407,1704280241384,-151.40103,0.00031598,2]
[309991408,1704280241393,-258.29,0.00031624,2]
[309991409,1704280241403,-247.17935471,0.00031678,4]
[309991410,1704280241412,-151.40103,0.00031698,2]
[309991411,1704280241422,-9707.45875165,0.00031716,2]
[309991412,1704280241433,-3821.35043127,0.00031716,2]
[309991413,1704280241443,-200.0,0.00031744,2]
[309991414,1704280241452,-289.39158655,0.00031744,2]
[309991415,1704280241549,-31.30295156,0.00031744,2]
[309991416,1704280241559,-150.0,0.0003177,2]
[309991417,1704280241568,-154.21,0.0003178,2]
[309991418,1704280241577,-258.29,0.00031786,2]
[309991419,1704280241586,-151.40103,0.00031798,2]
[309991420,1704280241597,-388.0,0.000318,5]
[309991421,1704280241607,-7066.73181881,0.000318,2]
[309991422,1704280241618,-1040.16767273,0.000318,2]
[309991423,1704280241689,-4125.39408736,0.000318,2]
[309991424,1704280241698,-150.0,0.00031821,2]
[309991425,1704280241707,-151.38031523,0.00031822,2]
[309991426,1704280241716,-206.0,0.00031849,12]
[309991427,1704280241725,-123.73603897,0.00031858,2]
[309991428,1704280241745,-26.26396103,0.00031858,2]
[309991429,1704280241755,-500.0,0.00031867,2]
[309991430,1704280241764,-500.0,0.00031867,2]
[309991431,1704280241774,-500.0,0.00031867,2]
[309991433,1704280241783,-714.82409627,0.00031868,2]
[309991435,1704280241796,-560.0,0.00031868,2]
[309991437,1704280241807,-5054.28313844,0.00031868,2]
[309991452,1704280243205,-7199.70194821,0.00031868,2]
[309991454,1704280243215,-195.33079476,0.00031876,2]
[309991456,1704280243224,-150.0,0.00031878,2]
[309991458,1704280243233,-150.0,0.00031885,2]
[309991460,1704280243243,-565.03,0.00031888,10]
[309991463,1704280243252,-5406.07509969,0.00031896,2]
[309991466,1704280243262,-4743.38535118,0.00031898,2]
[309991469,1704280243274,-15234.09963373,0.00031898,2]
[309991472,1704280243286,-44482.84071509,0.00031898,2]
[309991474,1704280243296,-15148.2731,0.00031898,2]
[309991476,1704280243305,-1000.0,0.00031898,2]
[309991478,1704280243314,-7500.0,0.00031898,2]
[309991479,1704280243323,-151.40103,0.00031898,2]
[309991480,1704280243332,-7722.21103528,0.00031898,3]
[309991482,1704280243341,-7971.550336,0.000319,2]
[309991483,1704280243350,-208.0,0.000319,2]
[309991484,1704280243359,-157.07107002,0.000319,3]
[309991485,1704280243368,-150.67909482,0.000319,2]
[309991486,1704280243377,-342.0,0.000319,2]
[309991487,1704280243386,-159.92311497,0.000319,2]
[309991488,1704280243395,-312.86995629,0.000319,2]
[309991489,1704280243404,-341.4612772,0.000319,2]
[309991490,1704280243414,-652.42633337,0.000319,2]
[309991491,1704280243423,-150.0,0.00031901,2]
[309991492,1704280243432,-247.60430346,0.00031923,2]
[309991493,1704280243442,-200.0,0.00031934,2]
[309991494,1704280243451,-258.29,0.00031949,2]
[309991495,1704280243460,-150.0,0.00031954,2]
[309991496,1704280243470,-150.0,0.00031967,2]
[309991497,1704280243480,-1006.79221608,0.00031973,5]
[309991498,1704280243490,-153.84,0.00031975,2]
[309991499,1704280243500,-150.0,0.00031978,2]
[309991500,1704280243509,-150.0,0.0003199,2]
[309991501,1704280243518,-150.0,0.00031995,2]
[309991502,1704280243528,-150.0,0.00031996,2]
[309991503,1704280243537,-303.81535438,0.00031997,2]
[309991504,1704280243546,-2079.25177628,0.00031997,2]
[309991505,1704280243555,-307405.69791329,0.00031998,4]
[309991506,1704280243565,-151.40103,0.00031998,2]
[309991507,1704280243574,-1553.69659928,0.00031999,4]
[309991508,1704280243583,-150.01,0.00031999,2]
[309991509,1704280243593,-3281.2780434,0.00031999,2]
[309991511,1704280243603,-1000.0,0.00031999,3]
[309991512,1704280243613,-100000.0,0.00032,2]
[309991513,1704280243622,-424.04794078,0.00032,4]
[309991514,1704280243631,-186.25528522,0.00032,7]
[309991515,1704280243640,-452558.98399057,0.00032,5]
[309991516,1704280243697,-2199.1851339,0.00032,5]
[309991517,1704280243709,-317.98845924,0.00032,5]
[309991518,1704280243730,-1228.53770147,0.00032,5]
[309991519,1704280243741,-500.0,0.00032,5]
[309991520,1704280243753,-488.81512471,0.00032,5]
[309991521,1704280243819,-2170.37560067,0.00032,5]
[309991522,1704280243831,-7785.78998907,0.00032,5]
[309991523,1704280243852,-444.52355762,0.00032,5]
[309991524,1704280243864,-1094.93749655,0.00032,5]
[309991525,1704280243880,-297.63572924,0.00032,5]
[309991529,1704280246260,-155.27094057,0.00031867,4]
[309991530,1704280246270,-338.16719386,0.00031867,4]
[309991532,1704280246280,-448.0,0.00032,5]
[309991533,1704280246290,-2013.10238729,0.00032,5]
[309991536,1704280246320,-13331.22526641,0.00032,5]
[309991542,1704280246379,-1684.07102675,0.00032,5]
[309991544,1704280246391,-7792.58086538,0.00032,5]
[309991546,1704280246403,-12893.8033872,0.00032,5]
[309991547,1704280246416,-21974.95053451,0.00032,5]
[309991549,1704280246432,-773.56478229,0.00032,5]
[309991556,1704280246515,-2290.46103287,0.00032,5]
[309991558,1704280246529,-8691.75106017,0.00032,5]
[309991561,1704280246577,-13582.74591075,0.00032,5]
[309991562,1704280246633,-53998.42497624,0.00032,5]
[309991590,1704280397423,-2199.1851339,0.00023538,2]
[309991619,1704280530713,-2312.47292618,0.00023523,2]
[309991620,1704280530737,-408.40283651,0.00023523,2]
[309991621,1704280548508,-202.61761696,0.00023521,2]
[309991622,1704280548532,-514.67974286,0.00023521,2]
[309991623,1704280548558,-207.9220019,0.00023521,2]
[309991624,1704280548583,-620.21196217,0.00023522,2]
[309991625,1704280548607,-1175.4444388,0.00023523,2]
[309991626,1704280549066,-1028.28217291,0.00023523,2]
[309991627,1704280549091,-1692.59358978,0.00023524,2]
[309991628,1704280549604,-84.30918857,0.00023524,2]
[309991629,1704280549627,-370.01108445,0.00023524,2]
[309991630,1704280549653,-214.47459225,0.00023524,2]
[309991631,1704280549677,-402.32583918,0.00023524,2]